Workbook

Sheet Live Calc
A1: Table 14-5. Beta Angle Over a Year | H1: Constants and Conversion Factors
A2: Implemented by Anthony Shao, Microcosm. Contact: bookproject@smad.com | H2: Earth's Radius | I2: 6378.1366 | J2: km
A3: Version 1. August 4, 2011. copyright, 2011, Microcosm, Inc. | H3: μEarth | I3: 398600.4356 | J3: km3/s2
A4: See text for discussion. | H4: Geopotential Coefficient, J2 | I4: 0.00108263
A6: User Inputs in Orange
A8: Parameter | B8: Input | C8: Units
A9: Inclination, i (input 'synchronous' in cell B9 for a synchronous orbit) | B9: 70 | C9: deg | E9: Start Date
B10: =IF(B9="synchronous",ACOS(0.9856*(1-B11^2)^2/((3600*24*180/PI())*-1.5*B15*I4*(I2/B14)^2))*180/PI(),B9) -> 70 | C10: deg
A11: Eccentricity, e | B11: =(I2+B13)/B14-1 -> 0 | E11: 2012-01-01
A12: Perigee Altitude, Hp | B12: 400 | C12: km
A13: Apogee Altitude, Ha | B13: 400 | C13: km | E13: Ascending Node Local Time at Start
A14: Semi-major Axis, a | B14: =(2*I2+B12+B13)/2 -> 6778.1366 | C14: km
A15: Mean Motion, n | B15: =SQRT(I3/B14^3) -> 0.001131366745 | C15: rad/s | E15: 00:00:00
A16: Node Rate | B16: =(3600*24*180/PI())*-1.5*B15*I4*(I2/B14)^2*COS(B10*PI()/180)/(1-B11^2)^2 -> -2.754417593 | C16: deg/day
A44: Note: If the figure is not working, make sure Macros is enabled

Sheet Beta Angles
B2: Start Date | C2: Ascending Node Local Time at Start | D2: Orbit Precession Rate (deg/day) | E2: Orbit Normal Declination (deg)
B3: ='Live Calc'!E11 -> 2012-01-01 | C3: ='Live Calc'!E15 -> 00:00:00 | D3: ='Live Calc'!B16 -> -2.754417593 | E3: =90-'Live Calc'!B10 -> 20
A5: Date | B5: Right Ascension, RA (hrs) | C5: Declination (deg) | D5: Distance (AU) | E5: Orbit Normal Right Ascension (hrs) | F5: Beta Angle, β (deg)
A6: =B3 -> 2012-01-01 | B6: =SunPosition(A6) -> 18.72229454 | C6: -23.06321245 | D6: 0.9833211278 | E6: =MOD(B6+C3*24+6,24) -> 0.7222945399 | F6: =90-ArcLength(E6,$E$3,B6,C6) -> -7.699941728
A7: =A6+1 -> 2012-01-02 | B7: =SunPosition(A7) -> 18.79589672 | C7: -22.98317585 | D7: 0.9833077072 | E7: =MOD((A7-A6)*$D$3/15+E6,24) -> 0.5386667003 | F7: -4.320263544
A8: =A7+1 -> 2012-01-03 | B8: =SunPosition(A8) -> 18.86940922 | C8: -22.89549961 | D8: 0.9832993948 | E8: 0.3550388608 | F8: -0.9651429164
A9: =A8+1 -> 2012-01-04 | B9: =SunPosition(A9) -> 18.94282351 | C9: -22.80022661 | D9: 0.9832961935 | E9: 0.1714110212 | F9: 2.362455604
A10: 2012-01-05 | B10: =SunPosition(A10) -> 19.01613128 | C10: -22.69740347 | D10: 0.9832981042 | E10: 23.98778318 | F10: 5.659139869
A11: 2012-01-06 | B11: =SunPosition(A11) -> 19.08932442 | C11: -22.58708055 | D11: 0.9833051263 | E11: 23.80415534 | F11: 8.92101347
A12: 2012-01-07 | B12: =SunPosition(A12) -> 19.16239503 | C12: -22.46931183 | D12: 0.9833172576 | E12: 23.6205275 | F12: 12.1435845
A13: 2012-01-08 | B13: =SunPosition(A13) -> 19.23533545 | C13: -22.34415482 | D13: 0.9833344941 | E13: 23.43689966 | F13: 15.32165709
A14: 2012-01-09 | B14: =SunPosition(A14) -> 19.30813826 | C14: -22.21167049 | D14: 0.9833568302 | E14: 23.25327182 | F14: 18.44920278
A15: 2012-01-10 | B15: =SunPosition(A15) -> 19.3807963 | C15: -22.07192315 | D15: 0.9833842584 | E15: 23.06964398 | F15: 21.51920888
A16: 2012-01-11 | B16: =SunPosition(A16) -> 19.45330265 | C16: -21.9249804 | D16: 0.98341677 | E16: 22.88601614 | F16: 24.52350126
A17: 2012-01-12 | B17: =SunPosition(A17) -> 19.52565069 | C17: -21.77091295 | D17: 0.9834543543 | E17: 22.7023883 | F17: 27.45254016
A18: 2012-01-13 | B18: =SunPosition(A18) -> 19.59783408 | C18: -21.60979461 | D18: 0.9834969989 | E18: 22.51876047 | F18: 30.29518993
A19: 2012-01-14 | B19: =SunPosition(A19) -> 19.66984676 | C19: -21.44170209 | D19: 0.98354469 | E19: 22.33513263 | F19: 33.03846801
A20: 2012-01-15 | B20: =SunPosition(A20) -> 19.74168297 | C20: -21.26671497 | D20: 0.983597412 | E20: 22.15150479 | F20: 35.66728572
A21: 2012-01-16 | B21: =SunPosition(A21) -> 19.81333724 | C21: -21.08491553 | D21: 0.9836551477 | E21: 21.96787695 | F21: 38.16420511
A22: 2012-01-17 | B22: =SunPosition(A22) -> 19.88480442 | C22: -20.89638867 | D22: 0.9837178783 | E22: 21.78424911 | F22: 40.50925317
A23: 2012-01-18 | B23: =SunPosition(A23) -> 19.95607967 | C23: -20.70122179 | D23: 0.9837855833 | E23: 21.60062127 | F23: 42.67985731
A24: 2012-01-19 | B24: =SunPosition(A24) -> 20.02715846 | C24: -20.49950468 | D24: 0.9838582406 | E24: 21.41699343 | F24: 44.65099198
A25: 2012-01-20 | B25: =SunPosition(A25) -> 20.09803658 | C25: -20.29132936 | D25: 0.9839358267 | E25: 21.23336559 | F25: 46.39564849
A26: 2012-01-21 | B26: =SunPosition(A26) -> 20.16871013 | C26: -20.07679006 | D26: 0.9840183161 | E26: 21.04973775 | F26: 47.88574349
A27: 2012-01-22 | B27: =SunPosition(A27) -> 20.23917553 | C27: -19.85598301 | D27: 0.9841056821 | E27: 20.86610991 | F27: 49.09354534
A28: 2012-01-23 | B28: =SunPosition(A28) -> 20.30942953 | C28: -19.62900637 | D28: 0.9841978962 | E28: 20.68248207 | F28: 49.99359973
A29: 2012-01-24 | B29: =SunPosition(A29) -> 20.37946919 | C29: -19.39596012 | D29: 0.9842949284 | E29: 20.49885423 | F29: 50.56497622
A30: 2012-01-25 | B30: =SunPosition(A30) -> 20.44929187 | C30: -19.15694594 | D30: 0.9843967473 | E30: 20.31522639 | F30: 50.79347523
A31: 2012-01-26 | B31: =SunPosition(A31) -> 20.51889527 | C31: -18.91206709 | D31: 0.9845033197 | E31: 20.13159855 | F31: 50.67331851
A32: 2012-01-27 | B32: =SunPosition(A32) -> 20.5882774 | C32: -18.66142833 | D32: 0.9846146111 | E32: 19.94797071 | F32: 50.2078884
A33: 2012-01-28 | B33: =SunPosition(A33) -> 20.65743656 | C33: -18.40513577 | D33: 0.9847305853 | E33: 19.76434287 | F33: 49.40930862
A34: 2012-01-29 | B34: =SunPosition(A34) -> 20.72637137 | C34: -18.14329681 | D34: 0.9848512048 | E34: 19.58071503 | F34: 48.296985
A35: 2012-01-30 | B35: =SunPosition(A35) -> 20.79508075 | C35: -17.87602001 | D35: 0.9849764305 | E35: 19.39708719 | F35: 46.89549324
A36: 2012-01-31 | B36: =SunPosition(A36) -> 20.86356391 | C36: -17.60341501 | D36: 0.9851062218 | E36: 19.21345935 | F36: 45.23229831
A37: 2012-02-01 | B37: =SunPosition(A37) -> 20.93182035 | C37: -17.32559239 | D37: 0.9852405368 | E37: 19.02983151 | F37: 43.33571069
A38: 2012-02-02 | B38: =SunPosition(A38) -> 20.99984987 | C38: -17.04266365 | D38: 0.9853793321 | E38: 18.84620367 | F38: 41.23331047
A39: 2012-02-03 | B39: =SunPosition(A39) -> 21.06765253 | C39: -16.75474105 | D39: 0.9855225629 | E39: 18.66257584 | F39: 38.95089801
A40: 2012-02-04 | B40: =SunPosition(A40) -> 21.13522868 | C40: -16.46193755 | D40: 0.9856701829 | E40: 18.478948 | F40: 36.51191254
A41: 2012-02-05 | B41: =SunPosition(A41) -> 21.20257892 | C41: -16.16436674 | D41: 0.9858221445 | E41: 18.29532016 | F41: 33.93720844
A42: 2012-02-06 | B42: =SunPosition(A42) -> 21.26970414 | C42: -15.86214272 | D42: 0.9859783989 | E42: 18.11169232 | F42: 31.24507302
A43: 2012-02-07 | B43: =SunPosition(A43) -> 21.33660545 | C43: -15.55538007 | D43: 0.9861388957 | E43: 17.92806448 | F43: 28.45138872
A44: 2012-02-08 | B44: =SunPosition(A44) -> 21.40328423 | C44: -15.24419372 | D44: 0.9863035833 | E44: 17.74443664 | F44: 25.56986854
A45: 2012-02-09 | B45: =SunPosition(A45) -> 21.46974208 | C45: -14.92869893 | D45: 0.986472409 | E45: 17.5608088 | F45: 22.61231739
A46: 2012-02-10 | B46: =SunPosition(A46) -> 21.53598085 | C46: -14.60901118 | D46: 0.9866453184 | E46: 17.37718096 | F46: 19.58889109
A47: 2012-02-11 | B47: =SunPosition(A47) -> 21.6020026 | C47: -14.28524614 | D47: 0.9868222561 | E47: 17.19355312 | F47: 16.5083375
A48: 2012-02-12 | B48: =SunPosition(A48) -> 21.66780963 | C48: -13.95751958 | D48: 0.9870031657 | E48: 17.00992528 | F48: 13.37821319
A49: 2012-02-13 | B49: =SunPosition(A49) -> 21.73340441 | C49: -13.62594734 | D49: 0.987187989 | E49: 16.82629744 | F49: 10.20507365
A50: 2012-02-14 | B50: =SunPosition(A50) -> 21.79878966 | C50: -13.29064523 | D50: 0.9873766673 | E50: 16.6426696 | F50: 6.99463836
A51: 2012-02-15 | B51: =SunPosition(A51) -> 21.86396825 | C51: -12.95172903 | D51: 0.9875691401 | E51: 16.45904176 | F51: 3.75193315
A52: 2012-02-16 | B52: =SunPosition(A52) -> 21.92894326 | C52: -12.6093144 | D52: 0.9877653462 | E52: 16.27541392 | F52: 0.4814132308
A53: 2012-02-17 | B53: =SunPosition(A53) -> 21.99371795 | C53: -12.26351688 | D53: 0.9879652231 | E53: 16.09178608 | F53: -2.812929889
A54: 2012-02-18 | B54: =SunPosition(A54) -> 22.05829574 | C54: -11.9144518 | D54: 0.9881687072 | E54: 15.90815824 | F54: -6.127474176
A55: 2012-02-19 | B55: =SunPosition(A55) -> 22.12268023 | C55: -11.56223426 | D55: 0.988375734 | E55: 15.7245304 | F55: -9.458882313
A56: 2012-02-20 | B56: =SunPosition(A56) -> 22.18687516 | C56: -11.20697909 | D56: 0.9885862377 | E56: 15.54090256 | F56: -12.80402322
A57: 2012-02-21 | B57: =SunPosition(A57) -> 22.25088443 | C57: -10.84880084 | D57: 0.9888001516 | E57: 15.35727472 | F57: -16.15989661
A58: 2012-02-22 | B58: =SunPosition(A58) -> 22.31471209 | C58: -10.48781371 | D58: 0.9890174081 | E58: 15.17364688 | F58: -19.52355709
A59: 2012-02-23 | B59: =SunPosition(A59) -> 22.37836229 | C59: -10.12413156 | D59: 0.9892379386 | E59: 14.99001904 | F59: -22.89203375
A60: 2012-02-24 | B60: =SunPosition(A60) -> 22.44183936 | C60: -9.757867859 | D60: 0.9894616733 | E60: 14.8063912 | F60: -26.26224047
A61: 2012-02-25 | B61: =SunPosition(A61) -> 22.50514771 | C61: -9.389135666 | D61: 0.9896885419 | E61: 14.62276337 | F61: -29.63087053
A62: 2012-02-26 | B62: =SunPosition(A62) -> 22.56829189 | C62: -9.018047619 | D62: 0.9899184728 | E62: 14.43913553 | F62: -32.99426702
A63: 2012-02-27 | B63: =SunPosition(A63) -> 22.63127655 | C63: -8.644715911 | D63: 0.9901513938 | E63: 14.25550769 | F63: -36.34825706
A64: 2012-02-28 | B64: =SunPosition(A64) -> 22.69410644 | C64: -8.269252276 | D64: 0.9903872319 | E64: 14.07187985 | F64: -39.68793262
A65: 2012-02-29 | B65: =SunPosition(A65) -> 22.75678641 | C65: -7.891767973 | D65: 0.9906259131 | E65: 13.88825201 | F65: -43.00735223
A66: 2012-03-01 | B66: =SunPosition(A66) -> 22.8193214 | C66: -7.512373778 | D66: 0.9908673626 | E66: 13.70462417 | F66: -46.2991254
A67: 2012-03-02 | B67: =SunPosition(A67) -> 22.88171643 | C67: -7.131179971 | D67: 0.9911115051 | E67: 13.52099633 | F67: -49.55382134
A68: 2012-03-03 | B68: =SunPosition(A68) -> 22.9439766 | C68: -6.748296332 | D68: 0.9913582643 | E68: 13.33736849 | F68: -52.75911245
A69: 2012-03-04 | B69: =SunPosition(A69) -> 23.00610709 | C69: -6.363832133 | D69: 0.9916075633 | E69: 13.15374065 | F69: -55.89851654
A70: 2012-03-05 | B70: =SunPosition(A70) -> 23.06811315 | C70: -5.977896133 | D70: 0.9918593246 | E70: 12.97011281 | F70: =90-ArcLength(E70,$E$3,B70,C70) -> -58.94953401
A71: 2012-03-06 | B71: =SunPosition(A71) -> 23.13000007 | C71: -5.590596578 | D71: 0.99211347 | E71: =MOD((A71-A70)*$D$3/15+E70,24) -> 12.78648497 | F71: -61.88089602
A72: 2012-03-07 | B72: =SunPosition(A72) -> 23.19177321 | C72: -5.202041197 | D72: 0.9923699205 | E72: 12.60285713 | F72: -64.64859158
A73: =A72+1 -> 2012-03-08 | B73: =SunPosition(A73) -> 23.253438 | C73: -4.812337207 | D73: 0.9926285969 | E73: 12.41922929 | F73: -67.19050354
A74: 2012-03-09 | B74: =SunPosition(A74) -> 23.31499988 | C74: -4.421591309 | D74: 0.992889419 | E74: 12.23560145 | F74: -69.42035236
A75: 2012-03-10 | B75: =SunPosition(A75) -> 23.37646437 | C75: -4.029909695 | D75: 0.9931523063 | E75: 12.05197361 | F75: -71.22422309
A76: 2012-03-11 | B76: =SunPosition(A76) -> 23.437837 | C76: -3.637398051 | D76: 0.9934171778 | E76: 11.86834577 | F76: -72.46783657
A77: 2012-03-12 | B77: =SunPosition(A77) -> 23.49912334 | C77: -3.244161561 | D77: 0.9936839519 | E77: 11.68471793 | F77: -73.0254931
A78: 2012-03-13 | B78: =SunPosition(A78) -> 23.560329 | C78: -2.850304915 | D78: 0.9939525468 | E78: 11.50109009 | F78: -72.82838772
A79: 2012-03-14 | B79: =SunPosition(A79) -> 23.62145959 | C79: -2.455932315 | D79: 0.9942228798 | E79: 11.31746225 | F79: -71.89962396
A80: 2012-03-15 | B80: =SunPosition(A80) -> 23.68252077 | C80: -2.061147482 | D80: 0.9944948684 | E80: 11.13383441 | F80: -70.34139258
A81: 2012-03-16 | B81: =SunPosition(A81) -> 23.74351819 | C81: -1.666053668 | D81: 0.9947684291 | E81: 10.95020657 | F81: -68.28782297
A82: 2012-03-17 | B82: =SunPosition(A82) -> 23.80445753 | C82: -1.27075366 | D82: 0.9950434787 | E82: 10.76657873 | F82: -65.86426233
A83: 2012-03-18 | B83: =SunPosition(A83) -> 23.86534445 | C83: -0.8753497937 | D83: 0.995319933 | E83: 10.5829509 | F83: -63.17020476
A84: 2012-03-19 | B84: =SunPosition(A84) -> 23.92618466 | C84: -0.4799439631 | D84: 0.9955977082 | E84: 10.39932306 | F84: -60.27867288
A85: 2012-03-20 | B85: =SunPosition(A85) -> 23.98698382 | C85: -0.08463762995 | D85: 0.9958767197 | E85: 10.21569522 | F85: -57.2415869
A86: 2012-03-21 | B86: =SunPosition(A86) -> 0.04774761197 | C86: 0.3104681641 | D86: 0.996156883 | E86: 10.03206738 | F86: -54.09562496
A87: 2012-03-22 | B87: =SunPosition(A87) -> 0.1084817096 | C87: 0.7052727865 | D87: 0.9964381131 | E87: 9.848439537 | F87: -50.86687075
A88: 2012-03-23 | B88: =SunPosition(A88) -> 0.1691917684 | C88: 1.099676003 | D88: 0.9967203251 | E88: 9.664811698 | F88: -47.57411728
A89: 2012-03-24 | B89: =SunPosition(A89) -> 0.2298834305 | C89: 1.493577963 | D89: 0.9970034339 | E89: 9.481183858 | F89: -44.23112037
A90: 2012-03-25 | B90: =SunPosition(A90) -> 0.2905623191 | C90: 1.886879194 | D90: 0.9972873541 | E90: 9.297556018 | F90: -40.84811751
A91: 2012-03-26 | B91: =SunPosition(A91) -> 0.3512340346 | C91: 2.279480582 | D91: 0.9975720003 | E91: 9.113928179 | F91: -37.4328544
A92: 2012-03-27 | B92: =SunPosition(A92) -> 0.4119041508 | C92: 2.671283367 | D92: 0.997857287 | E92: 8.930300339 | F92: -33.99128504
A93: 2012-03-28 | B93: =SunPosition(A93) -> 0.4725782119 | C93: 3.062189127 | D93: 0.9981431289 | E93: 8.7466725 | F93: -30.52805568
A94: 2012-03-29 | B94: =SunPosition(A94) -> 0.5332617283 | C94: 3.452099767 | D94: 0.9984294402 | E94: 8.56304466 | F94: -27.04684393
A95: 2012-03-30 | B95: =SunPosition(A95) -> 0.5939601733 | C95: 3.840917512 | D95: 0.9987161356 | E95: 8.379416821 | F95: -23.55060007
A96: 2012-03-31 | B96: =SunPosition(A96) -> 0.6546789793 | C96: 4.228544892 | D96: 0.9990031295 | E96: 8.195788981 | F96: -20.04172132
A97: 2012-04-01 | B97: =SunPosition(A97) -> 0.7154235344 | C97: 4.614884732 | D97: 0.9992903364 | E97: 8.012161142 | F97: -16.52217934
A98: 2012-04-02 | B98: =SunPosition(A98) -> 0.7761991786 | C98: 4.999840145 | D98: 0.9995776711 | E98: 7.828533302 | F98: -12.99361505
A99: 2012-04-03 | B99: =SunPosition(A99) -> 0.8370112003 | C99: 5.383314522 | D99: 0.9998650483 | E99: 7.644905463 | F99: -9.457409948
A100: 2012-04-04 | B100: =SunPosition(A100) -> 0.8978648324 | C100: 5.765211519 | D100: 1.000152383 | E100: 7.461277623 | F100: -5.914740533
A101: 2012-04-05 | B101: =SunPosition(A101) -> 0.9587652488 | C101: 6.145435057 | D101: 1.00043959 | E101: 7.277649784 | F101: -2.366620454
A102: 2012-04-06 | B102: =SunPosition(A102) -> 1.01971756 | C102: 6.523889306 | D102: 1.000726585 | E102: 7.094021944 | F102: 1.186066416
A103: 2012-04-07 | B103: =SunPosition(A103) -> 1.080726812 | C103: 6.900478685 | D103: 1.001013282 | E103: 6.910394104 | F103: 4.742539572
A104: 2012-04-08 | B104: =SunPosition(A104) -> 1.141797976 | C104: 7.275107854 | D104: 1.001299599 | E104: 6.726766265 | F104: 8.302100376
A105: 2012-04-09 | B105: =SunPosition(A105) -> 1.202935954 | C105: 7.647681709 | D105: 1.00158545 | E105: 6.543138425 | F105: 11.86411414
A106: 2012-04-10 | B106: =SunPosition(A106) -> 1.264145566 | C106: 8.018105377 | D106: 1.001870753 | E106: 6.359510586 | F106: 15.42799472
A107: 2012-04-11 | B107: =SunPosition(A107) -> 1.325431551 | C107: 8.386284216 | D107: 1.002155422 | E107: 6.175882746 | F107: 18.99319074
A108: 2012-04-12 | B108: =SunPosition(A108) -> 1.386798562 | C108: 8.752123811 | D108: 1.002439376 | E108: 5.992254907 | F108: 22.55917266
A109: 2012-04-13 | B109: =SunPosition(A109) -> 1.448251162 | C109: 9.115529975 | D109: 1.002722532 | E109: 5.808627067 | F109: 26.12541986
A110: 2012-04-14 | B110: =SunPosition(A110) -> 1.509793818 | C110: 9.476408748 | D110: 1.003004807 | E110: 5.624999228 | F110: 29.69140685
A111: 2012-04-15 | B111: =SunPosition(A111) -> 1.5714309 | C111: 9.834666399 | D111: 1.003286119 | E111: 5.441371388 | F111: 33.25658745
A112: 2012-04-16 | B112: =SunPosition(A112) -> 1.633166675 | C112: 10.19020943 | D112: 1.003566386 | E112: 5.257743549 | F112: 36.82037549
A113: 2012-04-17 | B113: =SunPosition(A113) -> 1.695005301 | C113: 10.54294458 | D113: 1.003845527 | E113: 5.074115709 | F113: 40.38211955
A114: 2012-04-18 | B114: =SunPosition(A114) -> 1.756950828 | C114: 10.89277884 | D114: 1.004123462 | E114: 4.89048787 | F114: 43.94106841
A115: 2012-04-19 | B115: =SunPosition(A115) -> 1.819007186 | C115: 11.23961943 | D115: 1.004400111 | E115: 4.70686003 | F115: 47.49632112
A116: 2012-04-20 | B116: =SunPosition(A116) -> 1.881178189 | C116: 11.58337385 | D116: 1.004675393 | E116: 4.52323219 | F116: 51.04675203
A117: 2012-04-21 | B117: =SunPosition(A117) -> 1.943467522 | C117: 11.92394986 | D117: 1.004949229 | E117: 4.339604351 | F117: 54.59089299
A118: 2012-04-22 | B118: =SunPosition(A118) -> 2.005878745 | C118: 12.2612555 | D118: 1.005221541 | E118: 4.155976511 | F118: 58.12673977
A119: 2012-04-23 | B119: =SunPosition(A119) -> 2.068415282 | C119: 12.59519911 | D119: 1.005492251 | E119: 3.972348672 | F119: 61.65141796
A120: 2012-04-24 | B120: =SunPosition(A120) -> 2.131080419 | C120: 12.92568934 | D120: 1.005761281 | E120: 3.788720832 | F120: 65.16057209
A121: 2012-04-25 | B121: =SunPosition(A121) -> 2.1938773 | C121: 13.25263516 | D121: 1.006028554 | E121: 3.605092993 | F121: 68.6471701
A122: 2012-04-26 | B122: =SunPosition(A122) -> 2.256808921 | C122: 13.5759459 | D122: 1.006293994 | E122: 3.421465153 | F122: 72.0989595
A123: 2012-04-27 | B123: =SunPosition(A123) -> 2.319878126 | C123: 13.89553124 | D123: 1.006557525 | E123: 3.237837314 | F123: 75.49245963
A124: 2012-04-28 | B124: =SunPosition(A124) -> 2.383087604 | C124: 14.21130127 | D124: 1.006819073 | E124: 3.054209474 | F124: 78.77678086
A125: 2012-04-29 | B125: =SunPosition(A125) -> 2.446439881 | C125: 14.52316646 | D125: 1.007078563 | E125: 2.870581635 | F125: 81.8226705
A126: 2012-04-30 | B126: =SunPosition(A126) -> 2.50993732 | C126: 14.83103775 | D126: 1.007335921 | E126: 2.686953795 | F126: 84.24402959
A127: 2012-05-01 | B127: =SunPosition(A127) -> 2.573582112 | C127: 15.13482654 | D127: 1.007591075 | E127: 2.503325955 | F127: 85.03225095
A128: 2012-05-02 | B128: =SunPosition(A128) -> 2.637376276 | C128: 15.43444472 | D128: 1.007843953 | E128: 2.319698116 | F128: 83.56315859
A129: 2012-05-03 | B129: =SunPosition(A129) -> 2.70132165 | C129: 15.72980471 | D129: 1.008094483 | E129: 2.136070276 | F129: 80.87268841
A130: 2012-05-04 | B130: =SunPosition(A130) -> 2.765419891 | C130: 16.02081949 | D130: 1.008342594 | E130: 1.952442437 | F130: 77.74409372
A131: 2012-05-05 | B131: =SunPosition(A131) -> 2.829672468 | C131: 16.30740264 | D131: 1.008588217 | E131: 1.768814597 | F131: 74.44284352
A132: 2012-05-06 | B132: =SunPosition(A132) -> 2.894080661 | C132: 16.58946838 | D132: 1.008831282 | E132: 1.585186758 | F132: 71.06209029
A133: 2012-05-07 | B133: =SunPosition(A133) -> 2.958645552 | C133: 16.8669316 | D133: 1.009071722 | E133: 1.401558918 | F133: 67.64074669
A134: 2012-05-08 | B134: =SunPosition(A134) -> 3.023368028 | C134: 17.13970789 | D134: 1.00930947 | E134: 1.217931079 | F134: =90-ArcLength(E134,$E$3,B134,C134) -> 64.1977038
A135: 2012-05-09 | B135: =SunPosition(A135) -> 3.088248771 | C135: 17.40771362 | D135: 1.009544457 | E135: =MOD((A135-A134)*$D$3/15+E134,24) -> 1.034303239 | F135: 60.7432918
A136: 2012-05-10 | B136: =SunPosition(A136) -> 3.15328826 | C136: 17.67086595 | D136: 1.00977662 | E136: 0.8506753996 | F136: 57.283741
A137: =A136+1 -> 2012-05-11 | B137: =SunPosition(A137) -> 3.218486762 | C137: 17.92908289 | D137: 1.010005893 | E137: 0.6670475601 | F137: 53.82314467
A138: 2012-05-12 | B138: =SunPosition(A138) -> 3.283844335 | C138: 18.18228334 | D138: 1.010232212 | E138: 0.4834197206 | F138: 50.36441163
A139: 2012-05-13 | B139: =SunPosition(A139) -> 3.349360821 | C139: 18.43038716 | D139: 1.010455514 | E139: 0.299791881 | F139: 46.90976738
A140: 2012-05-14 | B140: =SunPosition(A140) -> 3.415035846 | C140: 18.67331518 | D140: 1.010675738 | E140: 0.1161640415 | F140: 43.46103651
A141: 2012-05-15 | B141: =SunPosition(A141) -> 3.480868816 | C141: 18.91098932 | D141: 1.010892821 | E141: 23.9325362 | F141: 40.01981218
A142: 2012-05-16 | B142: =SunPosition(A142) -> 3.546858917 | C142: 19.14333255 | D142: 1.011106705 | E142: 23.74890836 | F142: 36.5875643
A143: 2012-05-17 | B143: =SunPosition(A143) -> 3.61300511 | C143: 19.37026904 | D143: 1.01131733 | E143: 23.56528052 | F143: 33.16571305
A144: 2012-05-18 | B144: =SunPosition(A144) -> 3.679306135 | C144: 19.59172415 | D144: 1.011524637 | E144: 23.38165268 | F144: 29.75568256
A145: 2012-05-19 | B145: =SunPosition(A145) -> 3.745760504 | C145: 19.80762453 | D145: 1.011728569 | E145: 23.19802484 | F145: 26.35894315
A146: 2012-05-20 | B146: =SunPosition(A146) -> 3.812366505 | C146: 20.01789814 | D146: 1.011929071 | E146: 23.014397 | F146: 22.97704725
A147: 2012-05-21 | B147: =SunPosition(A147) -> 3.8791222 | C147: 20.22247433 | D147: 1.012126086 | E147: 22.83076916 | F147: 19.61166254
A148: 2012-05-22 | B148: =SunPosition(A148) -> 3.946025425 | C148: 20.42128392 | D148: 1.012319562 | E148: 22.64714133 | F148: 16.26460439
A149: 2012-05-23 | B149: =SunPosition(A149) -> 4.013073793 | C149: 20.61425921 | D149: 1.012509443 | E149: 22.46351349 | F149: 12.93786949
A150: 2012-05-24 | B150: =SunPosition(A150) -> 4.08026469 | C150: 20.80133409 | D150: 1.012695679 | E150: 22.27988565 | F150: 9.633672165
A151: 2012-05-25 | B151: =SunPosition(A151) -> 4.147595282 | C151: 20.98244406 | D151: 1.012878219 | E151: 22.09625781 | F151: 6.354484538
A152: 2012-05-26 | B152: =SunPosition(A152) -> 4.215062514 | C152: 21.15752633 | D152: 1.013057012 | E152: 21.91262997 | F152: 3.103081979
A153: 2012-05-27 | B153: =SunPosition(A153) -> 4.282663112 | C153: 21.32651984 | D153: 1.013232009 | E153: 21.72900213 | F153: -0.1174049293
A154: 2012-05-28 | B154: =SunPosition(A154) -> 4.350393588 | C154: 21.48936536 | D154: 1.013403164 | E154: 21.54537429 | F154: -3.303430502
A155: 2012-05-29 | B155: =SunPosition(A155) -> 4.418250243 | C155: 21.64600554 | D155: 1.013570428 | E155: 21.36174645 | F155: -6.450964658
A156: 2012-05-30 | B156: =SunPosition(A156) -> 4.486229168 | C156: 21.79638493 | D156: 1.013733756 | E156: 21.17811861 | F156: -9.555412686
A157: 2012-05-31 | B157: =SunPosition(A157) -> 4.554326251 | C157: 21.9404501 | D157: 1.013893105 | E157: 20.99449077 | F157: -12.61152253
A158: 2012-06-01 | B158: =SunPosition(A158) -> 4.622537183 | C158: 22.07814966 | D158: 1.01404843 | E158: 20.81086293 | F158: -15.61327819
A159: 2012-06-02 | B159: =SunPosition(A159) -> 4.69085746 | C159: 22.20943432 | D159: 1.014199689 | E159: 20.62723509 | F159: -18.55377828
A160: 2012-06-03 | B160: =SunPosition(A160) -> 4.759282391 | C160: 22.33425695 | D160: 1.014346841 | E160: 20.44360725 | F160: -21.42509936
A161: 2012-06-04 | B161: =SunPosition(A161) -> 4.827807104 | C161: 22.45257265 | D161: 1.014489847 | E161: 20.25997941 | F161: -24.21814552
A162: 2012-06-05 | B162: =SunPosition(A162) -> 4.896426553 | C162: 22.56433876 | D162: 1.014628667 | E162: 20.07635157 | F162: -26.92248758
A163: 2012-06-06 | B163: =SunPosition(A163) -> 4.965135522 | C163: 22.66951497 | D163: 1.014763264 | E163: 19.89272373 | F163: -29.52619935
A164: 2012-06-07 | B164: =SunPosition(A164) -> 5.03392864 | C164: 22.7680633 | D164: 1.014893602 | E164: 19.70909589 | F164: -32.01570397
A165: 2012-06-08 | B165: =SunPosition(A165) -> 5.102800382 | C165: 22.85994821 | D165: 1.015019645 | E165: 19.52546805 | F165: -34.37565104
A166: 2012-06-09 | B166: =SunPosition(A166) -> 5.17174508 | C166: 22.94513659 | D166: 1.015141358 | E166: 19.34184021 | F166: -36.58885549
A167: 2012-06-10 | B167: =SunPosition(A167) -> 5.240756933 | C167: 23.02359784 | D167: 1.015258711 | E167: 19.15821237 | F167: -38.63634078
A168: 2012-06-11 | B168: =SunPosition(A168) -> 5.309830016 | C168: 23.0953039 | D168: 1.015371669 | E168: 18.97458453 | F168: -40.49754027
A169: 2012-06-12 | B169: =SunPosition(A169) -> 5.378958289 | C169: 23.16022925 | D169: 1.015480204 | E169: 18.79095669 | F169: -42.15071644
A170: 2012-06-13 | B170: =SunPosition(A170) -> 5.448135607 | C170: 23.21835101 | D170: 1.015584286 | E170: 18.60732886 | F170: -43.57365165
A171: 2012-06-14 | B171: =SunPosition(A171) -> 5.517355732 | C171: 23.26964888 | D171: 1.015683887 | E171: 18.42370102 | F171: -44.7446371
A172: 2012-06-15 | B172: =SunPosition(A172) -> 5.586612341 | C172: 23.31410526 | D172: 1.01577898 | E172: 18.24007318 | F172: -45.64373278
A173: 2012-06-16 | B173: =SunPosition(A173) -> 5.655899039 | C173: 23.3517052 | D173: 1.015869539 | E173: 18.05644534 | F173: -46.25419383
A174: 2012-06-17 | B174: =SunPosition(A174) -> 5.72520937 | C174: 23.38243647 | D174: 1.01595554 | E174: 17.8728175 | F174: -46.5638752
A175: 2012-06-18 | B175: =SunPosition(A175) -> 5.794536828 | C175: 23.40628952 | D175: 1.01603696 | E175: 17.68918966 | F175: -46.56637241
A176: 2012-06-19 | B176: =SunPosition(A176) -> 5.863874867 | C176: 23.42325755 | D176: 1.016113778 | E176: 17.50556182 | F176: -46.26166551
A177: 2012-06-20 | B177: =SunPosition(A177) -> 5.933216915 | C177: 23.43333649 | D177: 1.016185972 | E177: 17.32193398 | F177: -45.65612218
A178: 2012-06-21 | B178: =SunPosition(A178) -> 6.002556384 | C178: 23.43652498 | D178: 1.016253523 | E178: 17.13830614 | F178: -44.76185908
A179: 2012-06-22 | B179: =SunPosition(A179) -> 6.071886684 | C179: 23.43282444 | D179: 1.016316413 | E179: 16.9546783 | F179: -43.5956045
A180: 2012-06-23 | B180: =SunPosition(A180) -> 6.14120123 | C180: 23.42223898 | D180: 1.016374626 | E180: 16.77105046 | F180: -42.17729462
A181: 2012-06-24 | B181: =SunPosition(A181) -> 6.210493459 | C181: 23.40477546 | D181: 1.016428145 | E181: 16.58742262 | F181: -40.52864587
A182: 2012-06-25 | B182: =SunPosition(A182) -> 6.27975684 | C182: 23.38044346 | D182: 1.016476956 | E182: 16.40379478 | F182: -38.67189236
A183: 2012-06-26 | B183: =SunPosition(A183) -> 6.348984882 | C183: 23.34925524 | D183: 1.016521046 | E183: 16.22016694 | F183: -36.62879378
A184: 2012-06-27 | B184: =SunPosition(A184) -> 6.418171152 | C184: 23.31122578 | D184: 1.016560404 | E184: 16.0365391 | F184: -34.4199417
A185: 2012-06-28 | B185: =SunPosition(A185) -> 6.487309279 | C185: 23.26637269 | D185: 1.016595018 | E185: 15.85291126 | F185: -32.06433785
A186: 2012-06-29 | B186: =SunPosition(A186) -> 6.556392971 | C186: 23.21471623 | D186: 1.01662488 | E186: 15.66928342 | F186: -29.57919105
A187: 2012-06-30 | B187: =SunPosition(A187) -> 6.625416023 | C187: 23.15627928 | D187: 1.016649982 | E187: 15.48565558 | F187: -26.97987271
A188: 2012-07-01 | B188: =SunPosition(A188) -> 6.694372326 | C188: 23.09108728 | D188: 1.016670317 | E188: 15.30202774 | F188: -24.27997735
A189: 2012-07-02 | B189: =SunPosition(A189) -> 6.763255882 | C189: 23.01916823 | D189: 1.016685879 | E189: 15.1183999 | F189: -21.49144509
A190: 2012-07-03 | B190: =SunPosition(A190) -> 6.832060808 | C190: 22.94055264 | D190: 1.016696664 | E190: 14.93477206 | F190: -18.62471516
A191: 2012-07-04 | B191: =SunPosition(A191) -> 6.900781351 | C191: 22.85527346 | D191: 1.016702669 | E191: 14.75114422 | F191: -15.68888961
A192: 2012-07-05 | B192: =SunPosition(A192) -> 6.969411894 | C192: 22.76336609 | D192: 1.016703894 | E192: 14.56751639 | F192: -12.69189408
A193: 2012-07-06 | B193: =SunPosition(A193) -> 7.037946964 | C193: 22.66486831 | D193: 1.016700336 | E193: 14.38388855 | F193: -9.640628299
A194: 2012-07-07 | B194: =SunPosition(A194) -> 7.106381244 | C194: 22.5598202 | D194: 1.016691998 | E194: 14.20026071 | F194: -6.541102621
A195: 2012-07-08 | B195: =SunPosition(A195) -> 7.174709578 | C195: 22.44826414 | D195: 1.016678882 | E195: 14.01663287 | F195: -3.398559343
A196: 2012-07-09 | B196: =SunPosition(A196) -> 7.242926977 | C196: 22.33024474 | D196: 1.016660991 | E196: 13.83300503 | F196: -0.2175790439
A197: 2012-07-10 | B197: =SunPosition(A197) -> 7.311028631 | C197: 22.20580876 | D197: 1.01663833 | E197: 13.64937719 | F197: 2.997827097
A198: 2012-07-11 | B198: =SunPosition(A198) -> 7.379009913 | C198: 22.0750051 | D198: 1.016610905 | E198: 13.46574935 | F198: =90-ArcLength(E198,$E$3,B198,C198) -> 6.244137641
A199: 2012-07-12 | B199: =SunPosition(A199) -> 7.446866382 | C199: 21.93788469 | D199: 1.016578723 | E199: =MOD((A199-A198)*$D$3/15+E198,24) -> 13.28212151 | F199: 9.51825239
A200: 2012-07-13 | B200: =SunPosition(A200) -> 7.514593793 | C200: 21.7945005 | D200: 1.016541793 | E200: 13.09849367 | F200: 12.81743355
A201: =A200+1 -> 2012-07-14 | B201: =SunPosition(A201) -> 7.582188102 | C201: 21.64490739 | D201: 1.016500125 | E201: 12.91486583 | F201: 16.13925521
A202: 2012-07-15 | B202: =SunPosition(A202) -> 7.649645465 | C202: 21.48916214 | D202: 1.016453729 | E202: 12.73123799 | F202: 19.48155977
... 169 more rows
